bitfinex-derivatives/quotes_SOLF0:USTF0_20240923
["timestamp","ask_amount","ask_price","bid_price","bid_amount"]
[1727076132730,1.4216,145.96,145.89,3.4269]
[1727076133231,12.9316,145.96,145.89,3.4269]
[1727076133633,3.4263,145.93,145.89,3.4269]
[1727076133842,12.9316,145.96,145.89,3.4269]
[1727076134743,3.4264,145.92,145.89,3.4269]
[1727076135143,12.9316,145.96,145.9,3.4267]
[1727076136642,12.9316,145.96,145.89,3.427]
[1727076137046,12.9316,145.96,145.88,3.4271]
[1727076137247,11.51,145.95,145.88,3.4271]
[1727076137632,3.4267,145.91,145.88,3.4271]
[1727076138139,3.4264,145.92,145.89,3.427]
[1727076138442,1.4216,145.96,145.87,11.51]
[1727076138638,3.4257,145.95,145.89,11.51]
[1727076138837,13.8541,145.99,145.89,11.51]
[1727076139452,11.51,145.97,145.87,11.51]
[1727076139744,11.51,145.95,145.88,3.4271]
[1727076139944,11.51,145.95,145.87,11.51]
[1727076140341,3.4263,145.92,145.89,3.4268]
[1727076140738,11.51,145.95,145.87,11.51]
[1727076140939,3.4267,145.91,145.88,3.4272]
[1727076141337,11.51,145.95,145.88,3.4272]
[1727076141541,3.4264,145.92,145.88,3.4272]
[1727076142148,11.51,145.95,145.86,1.4321]
[1727076142448,2.3441,145.99,145.85,2.7903]
[1727076142646,11.51,145.92,145.85,2.7903]
[1727076143042,3.4268,145.9,145.86,3.4277]
[1727076143238,11.51,145.92,145.86,3.4277]
[1727076144139,3.4269,145.9,145.86,3.4277]
[1727076144748,1.4439,145.94,145.85,1.4217]
[1727076144939,11.51,145.91,145.85,1.4217]
[1727076145142,3.4273,145.88,145.85,1.4217]
[1727076145748,1.0,145.93,145.82,11.51]
[1727076146048,11.51,145.9,145.83,3.4283]
[1727076146439,11.51,145.9,145.8,2.773]
[1727076146639,11.51,145.9,145.8,14.283]
[1727076147246,3.4279,145.86,145.82,3.4285]
[1727076148945,3.4279,145.86,145.83,3.4284]
[1727076149748,3.4276,145.87,145.83,3.4284]
[1727076150051,4.80565271,145.92,145.85,11.51]
[1727076150052,1.3083,145.92,145.85,11.51]
[1727076150356,3.4271,145.89,145.86,3.4276]
[1727076151449,3.4273,145.88,145.85,14.9379]
[1727076151749,3.4273,145.88,145.85,3.4279]
[1727076151955,1.3083,145.92,145.83,11.51]
[1727076152846,3.4271,145.89,145.86,3.4276]
[1727076153049,1.3083,145.92,145.83,11.51]
[1727076153250,11.51,145.91,145.84,3.428]
[1727076153451,11.51,145.91,145.83,11.51]
[1727076153859,3.4275,145.87,145.83,11.51]
[1727076154455,4.73307026,145.92,145.8,2.773]
[1727076154755,11.51,145.89,145.8,14.283]
[1727076155157,3.4281,145.85,145.82,3.4286]
[1727076157252,11.51,145.87,145.76,6.32518038]
[1727076157452,11.51,145.87,145.78,11.51]
[1727076157658,11.51,145.89,145.8,11.51]
[1727076158455,12.51,145.91,145.82,11.51]
[1727076159160,3.4276,145.87,145.84,3.428]
[1727076159459,12.51,145.91,145.82,11.51]
[1727076159959,3.4277,145.87,145.83,3.4282]
[1727076160359,3.4273,145.88,145.82,11.51]
[1727076160561,3.4273,145.88,145.84,11.51]
[1727076160865,3.4271,145.89,145.84,11.51]
[1727076161063,4.38637766,145.91,145.77,1.3508]
[1727076161261,11.51,145.9,145.81,11.51]
[1727076161566,1.0,145.91,145.83,11.51]
[1727076161966,1.0,145.91,145.85,3.428]
[1727076162467,1.0,145.91,145.86,3.4277]
[1727076162858,3.4272,145.89,145.86,3.4277]
[1727076163763,3.4269,145.9,145.87,3.4275]
[1727076163963,1.0,145.91,145.79,1.3351]
[1727076164158,1.0,145.91,145.83,11.51]
[1727076164962,3.4274,145.88,145.84,3.428]
[1727076165364,1.0,145.91,145.84,3.428]
[1727076166659,3.4274,145.88,145.84,3.428]
[1727076166872,1.0,145.91,145.83,11.51]
[1727076167170,1.0,145.91,145.85,11.51]
[1727076167567,1.0,145.91,145.85,12.9175]
[1727076167762,1.0,145.91,145.86,11.51]
[1727076167966,11.51,145.96,145.9,3.4268]
[1727076168372,11.51,145.96,145.89,3.427]
[1727076168670,11.51,145.96,145.86,11.51]
[1727076168866,3.4266,145.91,145.86,11.51]
[1727076169466,11.51,145.93,145.85,12.9175]
[1727076170465,3.4266,145.91,145.87,3.4275]
[1727076170669,11.51,145.93,145.87,3.4275]
[1727076170969,3.4267,145.91,145.88,3.4272]
[1727076171368,11.51,145.95,145.88,3.4272]
[1727076171569,11.51,145.95,145.89,3.427]
[1727076171770,11.51,145.95,145.87,11.51]
[1727076171976,3.4263,145.92,145.87,11.51]
[1727076172270,11.51,145.95,145.89,3.4268]
[1727076172465,11.51,145.97,145.88,11.51]
[1727076172766,1.3691,145.99,145.91,3.4264]
[1727076172970,11.51,145.98,145.91,3.4264]
[1727076173568,11.51,145.98,145.9,3.4266]
[1727076173768,11.51,145.95,145.86,11.51]
[1727076174065,3.4264,145.92,145.86,11.51]
[1727076174276,3.4264,145.92,145.89,3.4269]
[1727076175871,3.4262,145.93,145.89,3.4269]
[1727076180276,11.51,145.95,145.86,14.9376]
[1727076180477,11.51,145.95,145.86,11.51]
[1727076180868,3.4265,145.92,145.88,3.4271]
[1727076181080,3.4265,145.92,145.86,11.51]
[1727076181274,11.51,145.95,145.86,11.51]
[1727076181576,12.51,145.97,145.88,11.51]
[1727076181971,12.51,145.97,145.9,3.4266]
[1727076182169,12.51,145.97,145.88,11.51]
[1727076182365,12.51,145.97,145.9,3.4266]
[1727076183572,3.426,145.94,145.9,11.51]
[1727076183874,1.0,145.97,145.93,11.51]
[1727076184072,89.1265,146.06,145.96,3.4252]
[1727076184073,3.4244,146.0,145.96,3.4252]
[1727076184271,12.9211,146.03,145.96,3.4252]
[1727076184476,12.9211,146.03,145.95,11.51]
[1727076184777,3.4243,146.01,145.97,3.4251]
[1727076184973,1.4111,146.03,145.97,3.4251]
[1727076185477,3.4246,146.0,145.97,3.4251]
[1727076186170,12.9254,146.05,145.95,11.51]
[1727076186472,11.51,146.02,145.94,4.1219]
[1727076186776,14.93300047,146.02,145.94,4.1219]
[1727076187173,14.93300047,146.02,145.95,3.4255]
[1727076187174,3.4249,145.99,145.95,3.4255]
[1727076188869,14.91745562,146.02,145.94,4.1219]
[1727076189179,14.91745562,146.02,145.92,11.51]
[1727076189180,11.51,146.0,145.92,11.51]
[1727076189374,3.4252,145.97,145.94,3.4258]
[1727076190072,3.425,145.98,145.94,3.4258]
[1727076191169,3.4245,146.0,145.95,11.51]
[1727076191575,3.4245,146.0,145.96,3.4253]
[1727076191974,3.4247,145.99,145.95,11.51]
[1727076192179,1.0,146.01,145.95,11.51]
[1727076193072,3.4249,145.99,145.95,11.51]
[1727076193474,3.4249,145.99,145.95,14.9355]
[1727076193880,3.4249,145.98,145.95,14.9355]
[1727076195775,3.4248,145.99,145.96,3.4253]
[1727076195971,3.4248,145.99,145.95,11.51]
[1727076196176,1.0,146.01,145.95,11.51]
[1727076196576,1.0,146.01,145.95,14.9355]
[1727076196577,3.4249,145.99,145.95,14.9355]
[1727076197184,3.4249,145.99,145.96,3.4254]
[1727076197986,3.4244,146.01,145.97,3.425]
[1727076198182,3.4244,146.01,145.97,11.51]
[1727076199392,3.4244,146.01,145.98,3.4249]
[1727076201287,3.4245,146.0,145.97,14.9351]
[1727076201493,2.8235,146.05,145.97,11.51]
[1727076202387,3.4246,146.0,145.97,11.51]
[1727076204289,3.4247,145.99,145.97,11.51]
[1727076206394,3.4247,145.99,145.98,7.37]
[1727076209195,7.37,145.99,145.93,7.37]
[1727076209787,3.4252,145.97,145.94,10.7957]
[1727076210098,7.37,146.03,145.96,7.37]
[1727076210291,7.37,146.04,146.0,7.37]
[1727076211895,7.37,146.03,145.98,7.37]
[1727076212398,3.4245,146.0,145.97,3.425]
[1727076213296,14.3335,146.05,145.96,14.9352]
[1727076213297,3.4248,145.99,145.96,14.9352]
[1727076213887,3.4245,146.0,145.97,3.4251]
[1727076214995,3.4248,145.99,145.96,14.9354]
[1727076215892,14.3335,146.05,145.96,11.51]
[1727076216288,3.4248,145.99,145.96,11.51]
[1727076217800,3.4248,145.99,145.96,14.9354]
[1727076218801,3.4245,146.0,145.96,14.9354]
[1727076223302,3.4243,146.01,145.96,11.51]
[1727076223502,1.0,146.04,145.96,12.8964]
[1727076224099,3.4243,146.01,145.98,3.4247]
[1727076225905,3.4245,146.0,145.97,3.425]
[1727076228608,1.0,146.04,145.98,3.4248]
[1727076228809,1.0,146.04,145.96,12.8964]
[1727076229410,3.4244,146.01,145.97,3.425]
[1727076229806,1.0,146.04,145.97,3.425]
[1727076230407,12.51,146.04,145.96,1.3864]
[1727076231516,12.51,146.04,145.96,4.8118]
[1727076231517,3.4248,145.99,145.96,4.8118]
[1727076234113,1.0,146.04,145.97,11.51]
[1727076234314,1.0,146.04,145.99,7.37]
[1727076234315,8.37,146.04,145.99,7.37]
[1727076234718,3.4244,146.0,145.99,7.37]
[1727076238013,3.4244,146.0,145.98,7.37]
[1727076238213,3.4244,146.0,145.96,1.3864]
[1727076238214,7.37,146.0,145.96,1.3864]
[1727076238423,7.37,145.98,145.93,7.37]
[1727076238613,3.4255,145.96,145.93,10.7959]
[1727076240110,3.4255,145.96,145.93,3.4259]
[1727076240315,3.4252,145.97,145.95,7.37]
[1727076240518,7.37,146.0,145.89,3.9977]
[1727076240519,7.37,146.0,145.96,7.37]
[1727076240716,3.425,145.98,145.96,7.37]
[1727076240913,7.37,146.0,145.95,7.37]
[1727076241815,3.4253,145.97,145.96,7.37]
[1727076242317,3.425,145.98,145.96,7.37]
[1727076242524,3.425,145.98,145.97,7.37]
[1727076243016,3.4248,145.99,145.97,7.37]
[1727076243224,7.37,146.02,145.98,7.37]
[1727076243517,3.4246,146.0,145.98,7.37]
[1727076243723,7.37,146.0,145.92,3.45555188]
[1727076243921,7.37,146.0,145.96,7.37]
[1727076244122,7.37,146.01,145.98,7.37]
[1727076244319,7.37,146.02,145.99,7.37]
[1727076244626,3.4244,146.01,145.99,7.37]
[1727076244822,1.0,146.04,146.0,7.37]
[1727076245220,1.0,146.04,146.01,7.37]
[1727076245221,3.4239,146.03,146.01,7.37]
[1727076245725,3.4239,146.03,146.02,7.37]
[1727076246322,7.37,146.06,146.02,7.37]
[1727076247129,3.4237,146.04,146.02,7.37]
[1727076247724,15.72788165,146.09,146.02,7.37]
[1727076247930,21.65808165,146.08,146.04,7.37]
[1727076248131,1.3162,146.12,146.04,7.37]
[1727076248432,3.423,146.07,146.04,7.37]
[1727076248726,7.37,146.09,146.04,7.37]
[1727076249133,3.4232,146.06,146.04,7.37]
[1727076249321,7.37,146.07,146.03,7.37]
[1727076250228,3.43724308,146.11,146.0,3.4244]
[1727076250525,7.37,146.04,146.0,10.7944]
[1727076251028,4.68276288,146.12,146.03,7.37]
[1727076251230,7.37,146.1,146.05,7.37]
[1727076252233,7.37,146.09,146.04,7.37]
[1727076252823,3.423,146.07,146.04,7.37]
[1727076253028,14.29648941,146.11,146.04,7.37]
[1727076253229,7.37,146.09,146.04,10.7935]
[1727076254023,7.37,146.09,146.04,7.37]
[1727076254231,4.68276288,146.12,146.04,7.37]
[1727076254429,7.37,146.1,146.04,7.37]
[1727076254630,7.37,146.1,146.01,6.37145115]
[1727076254823,7.37,146.09,146.03,7.37]
[1727076255934,3.4232,146.06,146.03,10.7937]
[1727076256131,7.37,146.09,146.03,7.37]
[1727076256330,4.68276288,146.12,145.99,6.36890942]
[1727076256528,3.4237,146.04,146.01,7.37]
[1727076257632,3.4234,146.05,146.03,7.37]
[1727076257830,7.37,146.1,146.04,7.37]
[1727076258031,7.37,146.1,146.06,7.37]
[1727076258233,3.4227,146.08,146.06,7.37]
[1727076258939,3.4225,146.09,146.06,7.37]
[1727076259242,10.73656288,146.12,146.06,7.37]
[1727076260131,10.73656288,146.12,146.08,7.37]
[1727076260132,3.36656288,146.12,146.08,7.37]
[1727076260333,11.5,146.12,146.03,11.5]
[1727076260541,3.4229,146.07,146.04,3.4233]
[1727076261344,3.4231,146.06,146.03,14.9237]
[1727076262040,3.47989305,146.11,146.02,3.4238]
[1727076262244,11.5,146.1,146.02,3.4238]
[1727076262738,12.5,146.1,146.02,3.4238]
[1727076263336,3.4232,146.06,146.02,3.4238]
[1727076263532,3.4232,146.06,146.02,14.9238]
[1727076264147,3.4232,146.06,146.03,3.4236]
[1727076264638,12.5,146.1,146.02,11.5]
[1727076265241,12.5,146.1,146.02,14.9238]
[1727076266140,3.4233,146.05,146.02,14.9238]
[1727076268244,3.4231,146.06,146.03,3.4237]
[1727076270550,3.4233,146.05,146.02,14.9239]
[1727076271745,1.0,146.1,146.04,11.5]
[1727076272444,3.4229,146.07,146.04,14.9234]
[1727076272843,3.4231,146.06,146.04,11.5]
[1727076273742,3.4233,146.05,146.03,3.4236]
[1727076273937,3.4233,146.05,146.02,3.4239]
[1727076274453,14.95136986,146.07,145.99,3.4245]
[1727076274647,11.5,146.07,145.99,3.4245]
[1727076274846,3.4241,146.02,145.99,3.4245]
[1727076276944,3.4238,146.03,146.0,3.4244]
[1727076277146,14.2992,146.09,145.99,11.5]
[1727076278654,3.4235,146.05,146.01,3.4241]
[1727076279649,3.4235,146.04,146.01,3.4241]
[1727076280353,3.4235,146.04,146.02,7.36]
[1727076280859,7.36,146.08,146.03,7.36]
[1727076281154,7.36,146.05,146.01,7.36]
[1727076281348,3.4236,146.04,146.01,7.36]
[1727076281551,7.36,146.05,146.01,7.36]
[1727076281749,7.36,146.07,146.02,7.36]
[1727076282747,3.4233,146.06,146.03,3.4235]
[1727076283951,3.4233,146.05,146.03,3.4235]
[1727076284147,3.4233,146.05,146.02,10.7839]
[1727076286244,3.4236,146.04,146.01,3.4242]
[1727076286455,3.4236,146.04,146.01,10.7842]
[1727076287755,3.4233,146.05,146.02,10.7838]
[1727076287958,3.47136594,146.07,145.99,7.36]
[1727076288254,7.36,146.04,145.99,7.36]
[1727076288756,3.46211809,146.06,145.97,2.6604]
[1727076288757,3.4249,145.98,145.97,2.6604]
[1727076288952,6.8466,146.05,145.96,6.35748598]
[1727076289149,7.36,145.98,145.92,6.35748598]
[1727076289345,7.36,145.95,145.91,12.1623]
[1727076289551,7.36,145.95,145.92,6.35882019]
[1727076289853,3.426,145.94,145.91,8.7358]
[1727076290351,3.426,145.94,145.91,1.3758]
[1727076291153,3.4257,145.95,145.91,4.8023]
[1727076292861,2.7148,146.02,145.9,3.4267]
[1727076293054,11.52,145.96,145.9,3.4267]
[1727076293362,3.4261,145.94,145.9,3.4267]
[1727076293659,3.36658359,145.97,145.86,2.7486]
[1727076293856,11.52,145.93,145.86,2.7486]
[1727076294051,3.4267,145.91,145.87,3.4273]
[1727076295957,11.52,145.91,145.82,11.52]
[1727076296156,11.52,145.91,145.83,1.3492]
[1727076296361,3.4272,145.89,145.85,3.4278]
[1727076297760,11.52,145.93,145.86,11.52]
[1727076298353,11.52,145.95,145.87,11.52]
[1727076298558,14.93515382,145.95,145.87,11.52]
[1727076299051,3.4264,145.92,145.89,3.4269]
[1727076299258,3.4264,145.92,145.86,11.52]
[1727076299660,3.4264,145.92,145.88,3.4272]
[1727076301870,11.52,145.95,145.88,3.4272]
[1727076302166,3.4263,145.93,145.89,3.427]
[1727076302361,11.52,145.99,145.89,11.52]
[1727076303967,3.4256,145.95,145.89,11.52]
[1727076304261,3.4256,145.95,145.87,2.7626]
[1727076304262,11.52,146.0,145.92,11.52]
[1727076304468,3.4254,145.96,145.93,3.426]
[1727076304762,11.52,146.0,145.93,3.426]
[1727076304970,3.4253,145.97,145.93,3.426]
[1727076305768,3.4249,145.98,145.92,11.52]
[1727076305969,1.0,146.01,145.93,11.52]
[1727076306567,3.4248,145.99,145.93,11.52]
[1727076306763,1.0,146.01,145.94,3.9724]
[1727076307165,3.4247,145.99,145.94,3.9724]
[1727076307867,3.4247,145.99,145.95,3.4254]
[1727076308565,3.425,145.98,145.95,3.4254]
[1727076308769,1.0,146.01,145.94,3.9724]
[1727076308965,11.52,146.0,145.91,11.52]
[1727076309175,3.4255,145.96,145.91,11.52]
[1727076309363,11.52,146.0,145.92,3.4263]
[1727076309562,3.4253,145.97,145.91,11.52]
[1727076309766,11.52,146.0,145.94,3.4257]
[1727076310273,3.425,145.98,145.94,3.4257]
[1727076310769,3.425,145.98,145.95,3.4256]
[1727076310972,3.4247,145.99,145.95,3.4256]
[1727076311168,3.4247,145.99,145.94,1.3686]
[1727076311674,3.4249,145.98,145.94,1.3686]
[1727076312073,11.52,145.99,145.91,11.52]
[1727076312667,3.4255,145.96,145.92,3.4262]
[1727076313368,3.426,145.94,145.89,11.52]
[1727076314467,3.4257,145.95,145.91,3.4264]
[1727076314668,3.4257,145.95,145.89,11.52]
[1727076315070,3.4257,145.95,145.91,3.4264]
[1727076315574,3.4483801,145.97,145.9,3.4267]
[1727076316379,3.4262,145.93,145.9,3.4267]
[1727076317176,14.181,146.0,145.9,11.52]
[1727076317377,11.52,145.98,145.9,11.52]
[1727076317569,3.39046157,145.97,145.9,11.52]
[1727076317773,3.4256,145.95,145.9,11.52]
[1727076318174,3.4255,145.96,145.9,11.52]
[1727076318373,11.52,146.0,145.91,11.52]
[1727076318577,1.0,146.01,145.93,11.52]
[1727076318878,3.4251,145.98,145.95,3.4255]
[1727076319273,3.4245,146.0,145.96,3.4252]
[1727076319677,1.0,146.01,145.96,3.4252]
[1727076320074,1.0,146.01,145.88,1.3686]
[1727076320075,1.0,146.01,145.95,11.52]
[1727076320676,4.4243,146.01,145.97,3.425]
[1727076321782,3.4245,146.0,145.96,3.4253]
[1727076322380,1.0,146.01,145.95,12.8617]
[1727076322576,94.80841279,146.05,145.97,11.52]
[1727076322778,2.7518,146.07,145.97,11.52]
[1727076322975,3.4233,146.05,145.99,11.52]
[1727076323377,3.50622738,146.07,145.99,11.52]
[1727076323876,3.4234,146.05,146.01,3.424]
[1727076325087,2.7867,146.12,146.0,2.7229]
[1727076325285,11.52,146.1,146.01,12.8371]
[1727076325797,1.0,146.11,146.01,12.8371]
[1727076325798,1.0,146.11,146.03,11.52]
[1727076326193,3.4223,146.1,146.06,3.4229]
[1727076326589,1.0,146.11,146.03,11.52]
[1727076326794,1.0,146.11,146.08,3.4225]
[1727076326995,1.0,146.11,146.05,11.52]
[1727076327297,11.52,146.17,146.07,11.52]
[1727076327491,11.52,146.17,146.08,1.4091]
[1727076327795,3.4214,146.13,146.08,4.8315]
[1727076327995,3.4214,146.13,146.08,1.4091]
[1727076328195,11.52,146.15,146.08,1.4091]
[1727076328390,11.52,146.15,146.08,4.8314]
[1727076329400,3.4215,146.13,146.09,3.4223]
[1727076329698,11.52,146.15,146.09,3.4223]
[1727076330895,3.4213,146.14,146.1,3.4221]
[1727076331090,1.0,146.16,146.1,3.4221]
[1727076331304,1.0,146.16,146.08,4.0614]
[1727076331501,3.4216,146.12,146.08,4.0614]
[1727076332201,3.4216,146.12,146.08,7.4838]
[1727076334502,3.4216,146.12,146.09,3.4223]
[1727076335103,3.4215,146.13,146.1,3.4221]
[1727076335595,3.4215,146.13,146.08,4.0614]
[1727076336097,1.0,146.16,146.09,3.4223]
[1727076336798,3.4216,146.12,146.09,3.4223]
[1727076337194,1.0,146.16,146.09,11.52]
[1727076337400,1.0,146.16,146.14,11.52]
[1727076337591,12.9536,146.23,146.14,11.52]
[1727076338199,16.41998367,146.23,146.15,11.52]
[1727076338397,4.89998367,146.23,146.15,11.52]
[1727076339102,4.89998367,146.23,146.16,3.4207]
[1727076340899,3.42,146.19,146.16,3.4207]
[1727076341300,12.8304,146.25,146.17,3.4204]
[1727076342006,3.49188265,146.24,146.17,3.4204]
[1727076342803,3.4199,146.2,146.17,3.4204]
[1727076343595,3.49188265,146.24,146.15,11.52]
[1727076343800,1.3104,146.25,146.14,11.52]
[1727076343997,11.52,146.21,146.14,11.52]
[1727076344610,3.4202,146.19,146.15,11.52]
[1727076344801,14.87364024,146.24,146.15,11.52]
[1727076345609,11.52,146.24,146.15,11.52]
[1727076345806,1.3104,146.25,146.17,11.52]
[1727076346015,11.52,146.27,146.17,11.52]
[1727076346202,11.52,146.27,146.18,3.4201]
[1727076346399,1.0,146.26,146.18,3.4201]
[1727076346802,11.52,146.25,146.18,3.4201]
[1727076347103,3.4197,146.21,146.18,3.4201]
[1727076347307,3.47919221,146.24,146.17,14.9404]
[1727076347507,11.52,146.25,146.16,1.3833]
[1727076347508,11.52,146.23,146.16,1.3833]
[1727076347908,11.52,146.23,146.16,4.8039]
[1727076348911,3.4201,146.19,146.16,4.8039]
[1727076351011,3.4203,146.18,146.16,1.3833]
[1727076351411,11.52,146.23,146.16,1.3833]
[1727076351714,3.4201,146.19,146.15,4.7773]
[1727076352111,3.4201,146.19,146.15,1.3564]
[1727076352316,11.52,146.23,146.15,1.3564]
[1727076352810,1.0,146.22,146.15,1.3564]
[1727076353413,3.4204,146.18,146.15,4.7773]
[1727076353806,3.4205,146.17,146.14,1.3622]
[1727076354314,3.4204,146.18,146.15,3.4209]
[1727076356011,1.0,146.22,146.16,14.9406]
[1727076356212,1.0,146.22,146.16,11.52]
[1727076357122,3.4199,146.2,146.17,3.4204]
[1727076357514,3.4199,146.2,146.16,11.52]
[1727076357716,3.4199,146.2,146.16,14.9406]
[1727076358523,3.4202,146.19,146.16,14.9406]
[1727076358816,3.4202,146.19,146.16,11.52]
[1727076359623,3.4202,146.19,146.16,14.9406]
[1727076360421,1.0,146.22,146.16,11.52]
[1727076361413,1.0,146.22,146.18,11.52]
[1727076362125,3.4196,146.21,146.18,14.9401]
[1727076365425,1.0,146.22,146.15,12.9325]
[1727076366423,1.0,146.22,146.17,11.52]
[1727076366620,11.52,146.26,146.17,11.52]
[1727076367019,1.0,146.25,146.17,11.52]
[1727076367220,3.4199,146.2,146.17,14.9404]
[1727076367421,11.52,146.24,146.15,12.9325]
[1727076367930,3.4199,146.2,146.16,3.4205]
[1727076368428,3.42730006,146.23,146.16,3.4205]
[1727076369628,3.42730006,146.23,146.16,11.52]
[1727076370424,1.0,146.25,146.21,11.52]
[1727076370627,14.89500856,146.32,146.22,11.52]
[1727076370932,11.52,146.32,146.22,11.52]
[1727076371117,3.4183,146.27,146.23,3.4189]
[1727076371727,3.4184,146.26,146.23,3.4189]
[1727076371921,3.40095791,146.31,146.19,11.52]
[1727076371922,11.52,146.28,146.19,11.52]
[1727076372337,3.419,146.24,146.19,11.52]
[1727076372528,11.52,146.28,146.22,3.4193]
[1727076372729,3.40095791,146.31,146.15,1.4125]
[1727076372928,11.52,146.28,146.19,11.52]
[1727076373135,12.90990957,146.34,146.21,3.4195]
[1727076373327,11.52,146.25,146.15,1.4125]
[1727076373636,1.0,146.3,146.15,4.8333]
[1727076373829,11.52,146.21,146.15,4.8333]
[1727076374026,3.4202,146.19,146.15,4.8333]
[1727076374236,11.52,146.21,146.15,1.4125]
[1727076374533,2.3618,146.24,146.16,11.52]
[1727076374834,2.3618,146.24,146.18,3.42]
[1727076375034,5.78933524,146.24,146.18,3.42]
[1727076375342,1.0,146.24,146.16,11.52]
[1727076376336,1.0,146.24,146.19,3.4199]
[1727076376337,3.4193,146.22,146.19,3.4199]
[1727076377444,3.4191,146.23,146.19,3.4199]
[1727076378333,3.4193,146.22,146.19,3.4199]
[1727076378930,1.0,146.24,146.18,11.52]
[1727076379124,1.0,146.24,146.2,11.52]
[1727076379326,1.0,146.24,146.22,11.52]
[1727076379839,1.0,146.24,146.23,3.419]
[1727076380234,3.4179,146.28,146.24,3.4187]
[1727076380935,11.52,146.31,146.24,3.4187]
[1727076380936,3.4182,146.27,146.24,3.4187]
[1727076381637,3.4184,146.26,146.23,3.419]
[1727076382543,11.52,146.29,146.2,11.52]
[1727076383034,3.419,146.24,146.21,3.4195]
[1727076383241,3.419,146.24,146.18,11.52]
[1727076383436,3.4195,146.22,146.18,3.4201]
[1727076383632,11.52,146.25,146.18,3.4201]
[1727076384036,3.4194,146.22,146.18,3.4201]
[1727076384236,11.52,146.25,146.16,11.52]
[1727076384237,11.52,146.25,146.19,3.42]
[1727076384641,1.0,146.28,146.2,3.4195]
[1727076384642,3.419,146.24,146.2,3.4195]
[1727076384839,3.419,146.24,146.19,1.4363]
[1727076385745,3.419,146.24,146.21,3.4194]
[1727076386250,1.0,146.28,146.19,1.4363]
[1727076386251,3.4191,146.23,146.19,1.4363]
[1727076387640,11.52,146.25,146.19,1.4363]
[1727076387840,1.0,146.28,146.19,1.4363]
[1727076388139,3.4194,146.22,146.18,3.4201]
[1727076388539,3.4194,146.22,146.16,11.52]
[1727076388731,3.4191,146.23,146.16,11.52]
[1727076388938,3.4191,146.23,146.18,11.52]
[1727076389845,3.4191,146.23,146.2,3.4196]
[1727076393947,3.419,146.24,146.18,11.52]
[1727076394546,3.419,146.24,146.21,3.4193]
[1727076394849,3.4188,146.25,146.18,11.52]
[1727076395036,3.4188,146.25,146.21,3.4193]
[1727076398445,3.4188,146.25,146.22,7.35]
[1727076399442,3.4188,146.25,146.22,10.7692]
[1727076399839,10.7688,146.25,146.22,10.7692]
[1727076401149,3.4184,146.26,146.24,7.35]